Cogmind - Beta 17.1 @@@ ROGUE MODE // 2026.09.01 @ 18:17:35 Player: OG DANIEL Result: Self-destructed Performance ------------- Evolutions (3) 1500 Regions Visited (5) 1000 Robots Destroyed (47) 235 Value Destroyed (1680) 1680 Prototype IDs (2) 40 Alien Tech Used (0) 0 Bonus (381) 381 TOTAL SCORE: 4836 Bonus ------- Follower Combat Kills 381 Cogmind --------- Core Integrity 612/700 Matter 229/300 Energy 150/150 System Corruption 5% Temperature Cool (9) Movement Walking (360) Ox3 Location -7/Factory Parts ------- > --- POWER (1) -------- Micro Nuclear Core > --- PROPULSION (4) --- VSS Leg > --- UTILITY (6) ------ Large Storage Unit Improved Targeting Computer Improved Light Armor Plating > --- WEAPON (2) ------- Assault Cannon Assault Cannon > --- INVENTORY (15) --- Heavy Ion Engine Light Nuclear Core VSS Leg VSS Leg VSS Leg VSS Leg VSS Leg Subdweller Monowheel Shock Rifle Pulse Rifle Flak Gun Rocket Array Mining Laser Peak State ------------ > --- POWER ------------ Heavy Ion Engine > --- PROPULSION ------- Aluminum Leg Aluminum Leg VSS Leg VSS Leg > --- UTILITY ---------- Large Storage Unit Trap Scanner Improved Targeting Computer Drone Bay Drone Bay Drone Bay > --- WEAPON ----------- Assault Cannon Assault Cannon > --- INVENTORY -------- Heavy Ion Engine Light Nuclear Core VSS Leg VSS Leg VSS Leg VSS Leg VSS Leg Subdweller Monowheel Drone Bay Shock Rifle Pulse Rifle Rocket Array Mining Laser [Rating: 42] Favorites ----------- Power Heavy Ion Engine Engine Heavy Ion Engine Power Core Micro Nuclear Core Propulsion Aluminum Leg Treads Light Treads Leg Aluminum Leg Wheel Compact Wheel Utility Trap Scanner Device Trap Scanner Storage Large Storage Unit Processor Improved Targeting Computer Protection Improved Light Armor Plating Weapon Assault Cannon Energy Gun Medium Laser Energy Cannon Subdweller Beam Cannon Ballistic Gun Improved Assault Rifle Ballistic Cannon Assault Cannon Launcher Subdweller Shrapnel Launcher Special Weapon Mining Laser Build | -11 -10 -10 -8 -8 -7 ------- Run | Yrd Mat Sub Mat Sto Fac Slots Evolved 6 | . . . 4 . 2 Power . | . . . . . . Propulsion 2 | . . . 2 . . Utility 4 | . . . 2 . 2 Weapon . | . . . . . . Parts Attached 54 | 6 4 3 9 19 13 Power 7 | 1 1 . 2 2 1 Engine 5 | 1 1 . 1 2 . Core 2 | . . . 1 . 1 Reactor . | . . . . . . Propulsion 15 | 2 . 1 4 6 2 Treads 1 | . . . 1 . . Leg 11 | . . . 3 6 2 Wheel 3 | 2 . 1 . . . Hover . | . . . . . . Flight . | . . . . . . Utility 18 | 1 1 . 3 3 10 Device 11 | . 1 . 2 1 7 Storage 2 | 1 . . 1 . . Processor 1 | . . . . 1 . Hackware . | . . . . . . Protection 4 | . . . . 1 3 Artifact . | . . . . . . Weapon 14 | 2 2 2 . 8 . Energy Gun 4 | 2 . . . 2 . Energy Cannon 3 | . . 1 . 2 . Ballistic Gun 3 | . 1 . . 2 . Ballistic Cannon 2 | . . . . 2 . Launcher 1 | . . 1 . . . Special Weapon 1 | . 1 . . . . Impact Weapon . | . . . . . . Slashing Weapon . | . . . . . . Piercing Weapon . | . . . . . . Special Melee Weapon . | . . . . . . Unidentified Prototypes 2 | . . . . 2 . Parts Lost 16 | . . . . 11 5 Power 1 | . . . . 1 . Propulsion 7 | . . . . 5 2 Utility 5 | . . . . 2 3 Weapon 3 | . . . . 3 . Highest Loss Streak 5 | . . . . 4 5 To Critical Strikes . | . . . . . . Average Backups 11 | 4 7 8 8 12 13 Power 1 | . 1 1 1 2 2 Propulsion 3 | 3 5 5 2 3 4 Utility 2 | . . . 1 2 2 Weapon 3 | . 1 2 3 4 3 Tool/Special . | . . . . . . Unused Backups 22 | . . . 6 4 12 Power 4 | . . . 1 . 3 Propulsion 9 | . . . 3 1 5 Utility 3 | . . . 1 1 1 Weapon 6 | . . . 1 2 3 Tool/Special . | . . . . . . Average Slot Usage (%) 96 | . 91 100 94 97 96 Engine 8 | . 14 14 9 8 5 Treads 2 | . . . 8 3 . Leg 25 | . . . 23 31 29 Wheel 4 | . 25 28 1 . . Device 19 | . 8 14 24 17 22 Storage 9 | . 14 14 9 9 7 Processor 4 | . . . . 4 7 Protection 3 | . . . . 4 4 Energy Gun 3 | . 21 10 . 3 . Energy Cannon 2 | . . 3 9 2 . Ballistic Gun 2 | . 5 5 . 4 . Ballistic Cannon 7 | . . . . 5 15 Launcher 1 | . . 5 9 . . Peak Build Rating 42 | 6 7 10 23 29 42 Average Rating 24 | 4 6 8 18 24 36 On Entrance 12 | . 6 7 10 23 29 Avg Prop Armor Cover (%) 9 | . . . 11 10 7 Naked Turns . | . . . . . . Heaviest Build 58 | 14 15 25 45 46 58 Greatest Support 44 | 26 26 36 36 30 44 Greatest Overweight (x) 3 | 1 1 . 1 3 2 Average Overweight (x) 1 | . . . . 1 1 Largest Inventory Capacity 15 | 8 8 8 15 15 15 Average Capacity 13 | 7 8 8 10 15 15 Most Carried 15 | 7 8 8 14 15 15 Average Carried 11 | 5 7 8 8 12 13 Final Capacity 15 | 8 8 8 15 15 15 Final Carried 15 | 7 8 8 14 15 13 Class Distribution -------------------- 71% | Mutant 22% | Commander-Mutant 6% | Scavenger-Mutant Dominant Class ---------------- Mutant | -10/Materials Mutant | -10/Subcaves Mutant | -8/Materials Mutant | -8/Storage Mutant | -7/Factory Resources | -11 -10 -10 -8 -8 -7 ----------- Run | Yrd Mat Sub Mat Sto Fac Matter Collected 1448 | 223 71 85 351 394 324 Remotely . | . . . . . . Salvage Created 1766 | 57 161 46 295 932 275 Parts 109 | 4 10 3 16 59 17 Haulers Intercepted 1 | . . . . . 1 Recyclers Shooed 3 | . . . 2 1 . Parts Field Recycled . | . . . . . . Retrieved Matter . | . . . . . . Parts Self-Destructed 3 | . . 3 . . . Prevented . | . . . . . . Parts Restored . | . . . . . . Kills | -11 -10 -10 -8 -8 -7 ------- Run | Yrd Mat Sub Mat Sto Fac Combat Hostiles Destroyed 36 | . 2 1 7 20 6 Guns 12 | . 2 . . 10 . Cannons 15 | . . . 2 7 6 AOE 9 | . . 1 5 3 . Classes Destroyed 10 | 1 2 1 1 2 3 Worker 2 | . . . . 2 . Builder 4 | . 1 . . 3 . Hauler 1 | . . . . . 1 Recycler 3 | 1 1 . . 1 . Watcher 1 | . . . . . 1 Swarmer 4 | . . . . 3 1 Grunt 15 | . 2 . 4 7 2 Sentry 13 | . . 1 2 9 1 Hunter 2 | . . . 1 1 . Programmer 2 | . . . . . 2 Best Kill Streak 9 | 1 4 1 3 9 4 Combat Bots Only 5 | . 2 1 3 5 3 Max Kills in Single Turn 2 | 1 1 1 2 2 1 Gunslinging . | . . . . . . Exploded 2 | . . 1 2 1 . Melee . | . . . . . . Uniques/NPCs Destroyed . | . . . . . . Combat | -11 -10 -10 -8 -8 -7 -------- Run | Yrd Mat Sub Mat Sto Fac Hostile Shots Fired 246 | . 6 . 20 135 85 Missed 55 | . 2 . 9 30 14 Hits 191 | . 4 . 11 105 71 Projectile 191 | . 4 . 11 105 71 Critical Strikes 6 | . . . 1 2 3 Damage Taken 2836 | . 45 . 211 1585 995 Core 447 | . 12 . 56 291 88 Absorbed by Shields . | . . . . . . Regen/Repaired (Parts) 5 | . 5 . . . . Core Remaining (%) 77 | 100 . 95 . 36 . Volleys Fired 125 | 2 14 13 10 69 17 Largest 2 | 2 2 2 2 2 2 Hottest 126 | 90 100 120 120 126 74 Shots Fired 220 | 4 25 14 20 122 35 Gun 98 | 4 22 . . 72 . Cannon 81 | . . 1 10 35 35 Launcher 19 | . . 1 10 8 . Special 22 | . 3 12 . 7 . Kinetic 110 | . 11 1 10 53 35 Thermal 76 | 2 14 13 10 37 . Explosive . | . . . . . . Electromagnetic 34 | 2 . . . 32 . Robot Hit Streak 21 | 2 9 5 5 21 11 Robot Miss Streak 4 | 1 1 1 2 4 3 Penetration Max . | . . . . . . Secondary Targets . | . . . . . . Shots Hit Robots 133 | 3 17 1 14 77 21 Core Hits 85 | 2 9 2 13 47 12 Critical Kills . | . . . . . . Critical Parts Destroyed 1 | . . . . 1 . Critical Strikes 3 | . 1 . . 1 1 Burn 1 | . 1 . . . . Destroy 1 | . . . . 1 . Blast 1 | . . . . . 1 Melee Attacks . | . . . . . . Impact . | . . . . . . Slashing . | . . . . . . Piercing . | . . . . . . Sneak Attacks . | . . . . . . Combat Hostiles . | . . . . . . Follow-up Attacks . | . . . . . . Damage Inflicted 3625 | 36 215 62 711 2037 564 Guns 999 | 36 213 . . 750 . Cannons 1467 | . . 29 219 678 541 Explosions 1115 | . . 33 492 590 . Melee . | . . . . . . Ramming 44 | . 2 . . 19 23 Kinetic 2239 | . 115 33 492 1058 541 Thermal 703 | 24 98 29 219 333 . Explosive . | . . . . . . Electromagnetic 639 | 12 . . . 627 . Impact . | . . . . . . Slashing . | . . . . . . Piercing . | . . . . . . Highest Corruption 5 | . . . . . 5 Average Corruption 2 | . . . . . 2 Corruption Purged . | . . . . . . Corruption Blocked . | . . . . . . Effects 7 | . . . . . 7 Message Errors 2 | . . . . . 2 Matter Fused 1 | . . . . . 1 Energy Discharges 2 | . . . . . 2 Parts Rejected 1 | . . . . . 1 Misfires 1 | . . . . . 1 Overload Shots . | . . . . . . Overflow Damage 1 | . . . . 1 . Projectiles 1 | . . . . 1 . Explosions . | . . . . . . Melee . | . . . . . . Knockbacks 5 | . . . . 1 4 Impact . | . . . . . . Kinetic 5 | . . . . 1 4 Secondary . | . . . . . . Self-Inflicted Damage 46 | . 1 . 40 5 . Shots 3 | . . . 2 1 . Rammed 1 | . 1 . . . . Targets Rammed 8 | . 1 . . 2 5 Kicked 7 | . . . . 2 5 Crushed . | . . . . . . Highest Temperature 308 | 40 96 . 195 308 14 Average Temperature 59 | 22 37 . 72 67 5 Received Heat Transfer 699 | . 24 . 54 477 144 Siege Activations . | . . . . . . Martial Activations . | . . . . . . Shielding Activations . | . . . . . . Robots Disrupted . | . . . . . . Combat Hostiles . | . . . . . . Robots Corrupted . | . . . . . . Combat Hostiles . | . . . . . . Parts Fried 2 | . . . . 2 . Impact Corruptions . | . . . . . . Robots Melted . | . . . . . . Combat Hostiles . | . . . . . . Parts Melted 1 | . . . . 1 . Heat Transferred 1480 | 74 370 37 296 703 . Parts Sabotaged . | . . . . . . Parts Stolen . | . . . . . . Parts Stripped . | . . . . . . Power Chain Reactions . | . . . . . . Alert | -11 -10 -10 -8 -8 -7 ------- Run | Yrd Mat Sub Mat Sto Fac Maximum Alert Level 1 | . . . 1 1 . Low Security (%) 80 | 100 100 . 84 60 100 Level 1 19 | . . . 15 39 . Level 2 . | . . . . . . Level 3 . | . . . . . . Level 4 . | . . . . . . Level 5 . | . . . . . . High Security . | . . . . . . Max Security . | . . . . . . Peak Influence 263 | 5 50 . 233 263 180 Initial 91 | . . . . 76 91 Average 117 | . 7 . 93 172 77 Influence Increases 1824 | 5 61 20 333 795 610 Destroy 0b10 Robot/C 980 | . 40 20 140 440 340 Destroy 0b10 Robot/NC 65 | 5 10 . . 30 20 Destroy Leader 316 | . 10 . 50 160 96 Allied During Kill 178 | . . . . 42 136 Successful Hack 12 | . . . . 12 . Disable Machine 75 | . . . 45 15 15 Destroy Structure 153 | . 1 . 98 51 3 Partial Spotted 15 | . . . . 15 . Lose Combat Pursuer 30 | . . . . 30 . Influence Decreases 1824 | 5 21 60 150 776 812 Entered New Map 238 | . . 20 . 107 111 Time Decay 1209 | 5 21 40 150 559 434 Lost Part 137 | . . . . 110 27 Lost Ally 240 | . . . . . 240 Squads Dispatched 18 | . 2 . 5 5 6 Investigation 2 | . 1 . 1 . . Extermination 2 | . . . . . 2 Reinforcement 7 | . 1 . 4 2 . Assault . | . . . . . . Garrison 7 | . . . . 3 4 Intercept . | . . . . . . Searches Triggered . | . . . . . . Construction Impeded . | . . . . . . Haulers Reinforced . | . . . . . . Active Scanning Responses . | . . . . . . Cargo Convoy Interrupts 1 | . . . . . 1 Stealth | -11 -10 -10 -8 -8 -7 --------- Run | Yrd Mat Sub Mat Sto Fac Distress Signals 15 | . . . 5 3 7 Communications Jammed . | . . . . . . Distress Signals . | . . . . . . Times Spotted 84 | . 3 1 10 37 33 Peak Tracking Total 12 | . 3 1 2 4 12 Tactical Retreats 2 | . . . . 2 . Traps | -11 -10 -10 -8 -8 -7 ------- Run | Yrd Mat Sub Mat Sto Fac Traps Triggered 2 | . 1 . . 1 . Indirectly . | . . . . . . Trap Hack Attempts . | . . . . . . Triggered . | . . . . . . Disarmed . | . . . . . . Reprogrammed . | . . . . . . Reused . | . . . . . . Traps Extracted . | . . . . . . Installed . | . . . . . . Triggered . | . . . . . . Machines | -11 -10 -10 -8 -8 -7 ---------- Run | Yrd Mat Sub Mat Sto Fac Machines Disabled 5 | . . . 3 1 1 Max in Single Turn 1 | . . . 1 1 1 Machines Repaired . | . . . . . . Machines Dismantled . | . . . . . . Machines Sabotaged . | . . . . . . Overloaded Fab Kills . | . . . . . . Hacking | -11 -10 -10 -8 -8 -7 --------- Run | Yrd Mat Sub Mat Sto Fac Machines Accessed 8 | . 3 . 1 4 . Terminals 6 | . 2 . . 4 . Fabricators . | . . . . . . Repair Stations 1 | . 1 . . . . Recycling Units . | . . . . . . Scanalyzers 1 | . . . 1 . . Garrison Access . | . . . . . . Total Hacks 18 | . 5 . 5 8 . Successful 12 | . 3 . 4 5 . Failed 6 | . 2 . 1 3 . Catastrophic 1 | . . . . 1 . Database Lockouts . | . . . . . . Manual 1 | . 1 . . . . Terminals 10 | . 2 . . 8 . Fabricators . | . . . . . . Repair Stations 3 | . 3 . . . . Recycling Units . | . . . . . . Scanalyzers 5 | . . . 5 . . Garrison Access . | . . . . . . Terminal Hacks 6 | . 1 . . 5 . Record 1 | . . . . 1 . Open Door 2 | . . . . 2 . Alert Level 1 | . . . . 1 . Zone Layout 2 | . 1 . . 1 . Fabricator Hacks . | . . . . . . Repair Station Hacks 2 | . 2 . . . . Scan Component 1 | . 1 . . . . Repair 1 | . 1 . . . . Recycling Unit Hacks . | . . . . . . Scanalyzer 4 | . . . 4 . . Insert Component 1 | . . . 1 . . Retrieve Study 3 | . . . 3 . . Garrison Access Hacks . | . . . . . . Unauthorized Hacks . | . . . . . . Terminals . | . . . . . . Fabricators . | . . . . . . Repair Stations . | . . . . . . Recycling Units . | . . . . . . Scanalyzers . | . . . . . . Garrison Access . | . . . . . . Data Cores Recovered . | . . . . . . Used . | . . . . . . Hacking Detections 5 | . 2 . 1 2 . Full Trace Events 1 | . . . 1 . . Feedback Events . | . . . . . . Feedback Blocked . | . . . . . . Robot Schematics Acquired . | . . . . . . Robots Built . | . . . . . . Authchips . | . . . . . . Time . | . . . . . . Total Robot Build Rating . | . . . . . . Part Schematics Acquired . | . . . . . . Parts Built . | . . . . . . Authchips . | . . . . . . Time . | . . . . . . Total Part Build Rating . | . . . . . . Part Studies Acquired 3 | . . . 3 . . Parts Repaired 1 | . 1 . . . . Time 26 | . 26 . . . . Parts Recycled . | . . . . . . Recycled Matter . | . . . . . . Retrieved Matter . | . . . . . . Retrieved Components . | . . . . . . Parts Scanalyzed . | . . . . . . Part Schematics Acquired . | . . . . . . Parts Damaged . | . . . . . . Bothacking | -11 -10 -10 -8 -8 -7 ------------ Run | Yrd Mat Sub Mat Sto Fac Used RIF Installer . | . . . . . . Robots Hacked . | . . . . . . Non-combat . | . . . . . . Combat . | . . . . . . Robot Hacks Applied . | . . . . . . Relay Couplers Released . | . . . . . . Fabnet Peak Effective % . | . . . . . . Robots Rewired . | . . . . . . Allies Hacked 2 | . . . . . 2 Hacks Repelled . | . . . . . . Allies | -11 -10 -10 -8 -8 -7 -------- Run | Yrd Mat Sub Mat Sto Fac Total Allies 10 | . . . . 10 . Largest Group 10 | . . . . 10 10 Highest-Rated Group 173 | . . . . 173 173 Highest-Rated Ally 29 | . . . . 29 29 Total Orders 11 | . . . . . 11 ROAM 6 | . . . . . 6 EXPLORE 5 | . . . . . 5 Ally Attacks 130 | . . . . 23 107 Total Damage 1474 | . . . . 241 1233 Kills 16 | . . . . 2 14 Allies Corrupted . | . . . . . . Allies Melted . | . . . . . . Intel | -11 -10 -10 -8 -8 -7 ------- Run | Yrd Mat Sub Mat Sto Fac Active Infowar (turns) 3606 | . 101 436 490 1268 1311 Structural 1449 | . 101 436 490 422 . Traps 2964 | . . . 385 1268 1311 Robot Analysis Total . | . . . . . . Derelict Logs Recovered . | . . . . . . Drone Launches 24 | . . . . 2 22 Drone Recoveries 16 | . . . . . 16 Exploration | -11 -10 -10 -8 -8 -7 ------------- Run | Yrd Mat Sub Mat Sto Fac Turns Passed 4130 | 69 165 436 490 1641 1329 Spaces Moved 1937 | 52 79 369 235 685 517 Core 3 | 3 . . . . . Treads . | . . . . . . Legs 1423 | . . . 221 685 517 Wheels 511 | 49 79 369 14 . . Hover . | . . . . . . Flight . | . . . . . . Fastest Speed 50 | 50 90 90 105 175 177 Average Speed 176 | 91 90 97 177 196 227 Slowest Speed 315 | 100 95 105 190 315 270 Overloaded Moves . | . . . . . . Propulsion Burnouts . | . . . . . . Robots Hopped . | . . . . . . Potential Cave-ins . | . . . . . . Cave-ins Triggered . | . . . . . . Exploration Rate (%) 29 | 4 16 24 25 84 25 Regions Visited 5 Branch Regions 2 Pre-discovered Areas . | . . . . . . Known Exits Taken . | . . . . . . Unknown Exits Taken 5 | 1 1 1 1 1 . Scrap Searched . | . . . . . . Spaces Dug 1 | . 1 . . . . Terrain Destroyed 228 | . 1 21 134 71 1 Melee . | . . . . . . Projectile 5 | . 1 . 2 1 1 AOE 223 | . . 21 132 70 . Terrain Rammed . | . . . . . . Walls Destroyed . | . . . . . . Machines Disabled . | . . . . . . Actions | -11 -10 -10 -8 -8 -7 --------- Run | Yrd Mat Sub Mat Sto Fac Total 2381 | 66 140 405 292 840 638 Wait 139 | . 38 13 10 31 47 Move 1932 | 51 78 368 234 684 517 Hop . | . . . . . . Pick Up 53 | 7 2 1 14 18 11 Fast Attach 26 | 6 3 1 6 4 6 Attach 21 | . 1 . 2 10 8 Detach 13 | . . . 3 3 7 Swap 19 | . 1 6 2 7 3 Drop 43 | . 2 3 11 10 17 Fire 125 | 2 14 13 10 69 17 Melee . | . . . . . . Ram 1 | . 1 . . . . Kick 7 | . . . . 2 5 Crush . | . . . . . . Escape Stasis . | . . . . . . Rewire 2 | . . . . 2 . Trap . | . . . . . . Miscellaneous . | . . . . . . Route ------- -11/Scrapyard -10/Materials -10/Subcaves -8/Materials -8/Storage (discovered 2 exits: [*Fac] / [Rec]) -7/Factory History --------- Turn | Location | Event 20 | -11/Scrapyard | Discovered new exit (range 15) 70 | -11/Scrapyard | Entered Materials 112 | -10/Materials | Repaired Com. Wheel 204 | -10/Materials | Discovered new exit (range 6) 235 | -10/Materials | Entered Subcaves 304 | -10/Subcaves | Build established: Mutant 488 | -10/Subcaves | Shifting Twisted Machinery released Sub. Beam Cannon 544 | -10/Subcaves | Shifting Twisted Machinery released Humpback 589 | -10/Subcaves | Discovered new exit (range 10) 671 | -10/Subcaves | Entered Materials 671 | -8/Materials | Evolved 4 slots: Propulsion x2, Utility x2 1085 | -8/Materials | Discovered new exit (range 8) 1161 | -8/Materials | Entered Storage 1614 | -8/Storage | Lost 4 parts (2n1u1w) 1969 | -8/Storage | Garrison activated, responded to threat 1984 | -8/Storage | Core integrity fell below 50% 2230 | -8/Storage | Assisted by bots powering up and referring to "LRC-V3" 2234 | -8/Storage | Discovered new exit (range 13) 2534 | -8/Storage | Build established: Commander-Mutant 2787 | -8/Storage | Discovered new exit (range 7) 2802 | -8/Storage | Entered Factory 2802 | -7/Factory | Accompanied by 12 allies 2802 | -7/Factory | Evolved 2 slots: Utility x2 2919 | -7/Factory | Garrison activated, responded to threat 3176 | -7/Factory | Lost 3 allies 3234 | -7/Factory | Garrison activated, responded to threat 3382 | -7/Factory | P-60 Hacker assimilated allied Trooper 3g 3434 | -7/Factory | Lost 4 allies 3553 | -7/Factory | Build established: Mutant 3607 | -7/Factory | Found Prototype Launcher 4121 | -7/Factory | Cargo convoy interrupted 4131 | -7/Factory | Self-destructed Last Messages --------------- payload. 04121_ X-67 Chaingunner unfolds itself. 04121_ H-55 Commando unfolds itself. 04121_ X-62 Marksman unfolds itself. 04121_ M-28 Smith unfolds itself. 04123_ Aluminum Leg+ destroyed. 04123_ Slug penetrates Terminal. 04125_ X-67 Chaingunner Flexi-carbon Leg blasted off. 04126_ Slug penetrates Terminal. 04128_ Slug penetrates Wall. 04128_ Trap Scanner destroyed. 04128_ Slug penetrates Wall. 04129_ Penetrated by Slug. 04130_ Reaction Control System destroyed. 04131_ Penetrated by Slug. 04131_ U-05 Engineer builds a Wall. 04131_ Penetrated by Slug. 04131_ Imp. Light Armor Plating destroyed. [Achievement: I Have A Map?] Map ----- +----------------------------------------------------+ | ??# """ ########## #???# # # # [ " " " # | | ??# """ #?#] # ##### # # # " " " # | | ??#! #?# ] + + #% # " " " # | | ??########?# ] # ##### # # #] " " " # | | ???????????# !! ]# #???# # # # " " " # | | ???????????# # #???# # # # " " " # | | ???????????# # #???# # # + "Y" " " " # | | ???????????##+##+## #???# # # # """ # | | ??# ######### #???# ####### ############## | | ??? # %#???# #????# #???????????# | | ??# """ """ # #???# #????# ############# | | ?# """ """ + #???# #????# | | ??# """ """ # #???# #????# ############# | | ??# # #???# #????# #???????????? | | ??# !! + #???# #????### ###???????????? | | ??#! ! # ##+##### #??????# #?????????????? | | ??# # # """ # #??????# #?????????????? | | #############+## # """ # #??????# #?????????????? | | # # """ # #??????# #?????????????? | | # # # #??????# #?????????????? | | """ """ # # # #??????# #?????????????? | | ???"""" """"" # # #u#??????# #?????????????? | | ???"""" """"" # ##+##/##%######## #?????????????? | | + %hu ???????? | | ! ## ##x##########?????????????? | | ## # @m!=%#??????????????????? | | ################# #p xh##########??????????? | | ??# = #??????# #p" "=##! #??????????? | | ??#! #??????# #h% ## """ #??????????? | | ??# == ######## ####i### """ #??????????? | | ??# =! # # ### """ #??????????? | | ??# = # ""%# # #??????????? | | ??# # ""S%+ + """ #??????????? | | ??# " # "" %# % # """ #??????????? | | ??# """" # %=# % # """ #??????????? | | ??# """" # +%### ####### #??????????? | | ??# """" ######## #?# #?????# #??????????? | | ??# """"%#??????# #?# #?????# #??????????? | | ??# """" #??????# #?# #?????#########??????????? | | ??# % #??????# #?# #????????????????????????? | | #?#####+###?????# #?# #????????????????????????? | | ##### #????## ### #????????????????????????? | | % ###### ## #????????????????????????? | | " T ## #????????????????????????? | | ###### ## #????????????????????????? | | ##### #????##### ????????????????????????? | | ############???????? #???????????????????????? | | [ ???# = ? #?? ???????????????????????? | | [ ""??# #?? ##??????????????????????? | | """"# "" ] #?? #???????????????????????? | +----------------------------------------------------+ Best States ------------- Heat Dissipation 34 Energy Generation 15 Energy Capacity 280 Matter Stores 300 Matter Capacity 300 Sight Range 16 Terrain Scan Density 10 Armor Coverage 450 Evasion (%) 42 Targeting Accuracy 6 Item Schematics ----------------- None Robot Schematics ------------------ None Fabricated ------------ Nothing Repaired ---------- Com. Wheel | 83% | -10/Materials Studied --------- Aluminum Leg | -8/Materials | Hacked Lgt. Treads | -8/Materials | Hacked EM Pulse Cannon | -8/Materials | Hacked Alien Tech Used ----------------- None Achievements -------------- I Have A Map? Challenges ------------ None Game ------ Seed IntegratedTripodSuite Manual? 0 Play Time 00:41:09 Cumulative 44.0 hours Start 2026.09.01 @ 17:36:57 End 2026.09.01 @ 18:17:35 Sessions 1 Manual Loads 0 Difficulty Rogue Special Mode None Game No. 113 Rogue 113 Adventurer 0 Explorer 0 Win Type - Total 0 Types 0/0/0/0/0/0/0/0/0/0 Lore% 10 Gallery% 23 Achievement% 18 Wizard Run 0 Options --------- Layout 1 ASCII 0 Keyboard 1 Movement Numpad Keybinds 0 Fullscreen 1 Font 24/Smallcaps Map View 50x35 Zoom Use 0% Tactical HUD 1 Map Filters NONE Filters NONE Steam 1 RUN: 76cc4fd4-868d-4ac2-a2ef-2d64c1696411